fUST/lending_fUST_20240327
["ID","MTS","AMOUNT","RATE_DAILY","PERIOD"]
[320710126,1711525845752,-500.0,0.00019178,2]
[320710128,1711525845761,-659.27,0.00019178,2]
[320710130,1711525845770,-500.10497564,0.00019178,2]
[320710131,1711525845780,-500.0,0.00019178,2]
[320710134,1711525845789,-500.0,0.00019178,2]
[320710136,1711525845799,-1673.72,0.00019178,2]
[320710137,1711525845808,-4423.14,0.00019178,2]
[320710139,1711525845817,-500.0,0.00019178,2]
[320710142,1711525845827,-962.07,0.00019178,2]
[320710144,1711525845837,-500.0,0.00019178,2]
[320710146,1711525845847,-2966.98,0.00019178,2]
[320710148,1711525845856,-500.0,0.00019178,2]
[320710150,1711525845865,-1976.1,0.00019178,2]
[320710152,1711525845873,-572.33,0.00019178,2]
[320710154,1711525845883,-630.45781618,0.00019178,2]
[320710155,1711525845892,-544.79,0.00019178,2]
[320710158,1711525845902,-500.0,0.00019178,2]
[320710159,1711525845911,-501.32852839,0.00019178,2]
[320710162,1711525845921,-500.0,0.00019178,2]
[320710164,1711525845930,-500.0,0.00019178,2]
[320710166,1711525845940,-500.0,0.00019178,2]
[320710168,1711525845949,-588.5,0.00019178,2]
[320710170,1711525845958,-7912.74,0.00019178,2]
[320710172,1711525845967,-500.3223347,0.00019178,2]
[320710174,1711525845976,-167.658928,0.00019178,2]
[320710176,1711525845984,-153.0197888,0.000192,2]
[320710178,1711525845994,-153.0,0.000192,2]
[320710180,1711525846004,-153.0,0.000192,2]
[320710183,1711525846013,-153.0,0.000192,2]
[320710185,1711525846023,-153.0,0.000192,2]
[320710188,1711525846032,-153.0,0.00019342,2]
[320710191,1711525846041,-153.0,0.00019342,2]
[320710193,1711525846050,-153.0,0.00019342,2]
[320710196,1711525846059,-153.0,0.00019349,2]
[320710199,1711525846068,-153.0,0.00019349,2]
[320710201,1711525846077,-153.0,0.00019349,2]
[320710203,1711525846086,-150.085,0.00019466,2]
[320710205,1711525846095,-153.0,0.000198,2]
[320710207,1711525846105,-153.0,0.000198,2]
[320710208,1711525846114,-153.0,0.000198,2]
[320710211,1711525846123,-153.0,0.00019836,2]
[320710213,1711525846133,-155.7994709,0.00019836,2]
[320710215,1711525846142,-153.0,0.00019836,2]
[320710217,1711525846152,-153.0,0.00019836,2]
[320710219,1711525846161,-454.6169677,0.00019836,2]
[320710221,1711525846170,-236.90220631,0.000199,2]
[320710223,1711525846179,-684.30913271,0.0002,2]
[320710225,1711525846189,-156.44012682,0.0002,2]
[320710227,1711525846198,-239.61530325,0.0002,2]
[320710228,1711525846208,-155.22142954,0.0002,2]
[320710231,1711525846217,-183.12899217,0.0002,2]
[320710232,1711525846231,-780.7394247,0.0002,2]
[320710235,1711525846241,-1600.0,0.0002,2]
[320710237,1711525846250,-19159.0,0.0002,2]
[320710239,1711525846259,-153.0,0.00020164,2]
[320710240,1711525846270,-153.0,0.00020164,2]
[320710242,1711525846280,-1001.68352321,0.000205,2]
[320710244,1711525846289,-155.01085076,0.000205,2]
[320710247,1711525846298,-5598.05931338,0.00021,2]
[320710249,1711525846308,-153.0,0.00021425,2]
[320710250,1711525846319,-2316.47173249,0.000215,2]
[320710252,1711525846329,-2000.0,0.00021817,2]
[320710254,1711525846338,-154.57149797,0.000219,2]
[320710257,1711525846348,-500.0,0.00021917,2]
[320710259,1711525846357,-500.0,0.00021917,2]
[320710260,1711525846366,-500.0,0.00021917,2]
[320710262,1711525846376,-500.0,0.00021917,2]
[320710264,1711525846386,-500.0,0.00021917,2]
[320710266,1711525846395,-500.0,0.00021917,2]
[320710268,1711525846406,-660.12,0.00021917,2]
[320710270,1711525846415,-500.0,0.00021917,2]
[320710272,1711525846424,-500.0,0.00021917,2]
[320710275,1711525846434,-500.0,0.00021917,2]
[320710276,1711525846444,-500.0,0.00021917,2]
[320710279,1711525846455,-500.0,0.00021917,2]
[320710280,1711525846466,-500.0,0.00021917,2]
[320710282,1711525846477,-500.0,0.00021917,2]
[320710284,1711525846487,-500.0,0.00021917,2]
[320710286,1711525846500,-500.0,0.00021917,2]
[320710288,1711525846512,-1554.49,0.00021917,2]
[320710290,1711525846523,-500.0,0.00021917,2]
[320710292,1711525846536,-520.50265724,0.00021917,2]
[320710294,1711525846547,-500.0,0.00021917,2]
[320710296,1711525846556,-1939.4,0.00021917,2]
[320710299,1711525846566,-499.54773135,0.00021917,2]
[320710301,1711525846579,-500.0,0.00021917,2]
[320710303,1711525846588,-500.0,0.00021917,2]
[320710305,1711525846598,-500.0,0.00021917,2]
[320710307,1711525846607,-500.0,0.00021917,2]
[320710309,1711525846618,-500.70484284,0.00021917,2]
[320710311,1711525846627,-500.0,0.00021917,2]
[320710313,1711525846636,-294.17027315,0.00021917,2]
[320710315,1711525846646,-500.0,0.00021917,2]
[320710317,1711525846656,-674.34,0.00021917,2]
[320710318,1711525846665,-500.0,0.00021917,2]
[320710320,1711525846674,-500.0,0.00021917,2]
[320710322,1711525846684,-500.0,0.00021917,2]
[320710324,1711525846693,-500.0,0.00021917,2]
[320710327,1711525846702,-500.0,0.00021917,2]
[320710328,1711525846711,-500.0,0.00021917,2]
[320710330,1711525846722,-500.0,0.00021917,2]
[320710332,1711525846731,-500.0,0.00021917,2]
[320710334,1711525846741,-500.0,0.00021917,2]
[320710336,1711525846751,-229.1918819,0.00021917,2]
[320710338,1711525846760,-500.0,0.00021917,2]
[320710340,1711525846769,-500.0,0.00021917,2]
[320710342,1711525846778,-520.91,0.00021917,2]
[320710344,1711525846787,-682.83,0.00021917,2]
[320710346,1711525846797,-500.0,0.00021917,2]
[320710348,1711525846806,-484.84,0.00021917,2]
[320710350,1711525846815,-500.0,0.00021917,2]
[320710352,1711525846825,-500.0,0.00021917,2]
[320710354,1711525846834,-1099.85,0.00021917,2]
[320710356,1711525846843,-826.08,0.00021917,2]
[320710358,1711525846852,-401.08775935,0.00021917,2]
[320710360,1711525846862,-646.65,0.00021917,2]
[320710362,1711525846871,-3852.88,0.00021917,2]
[320710364,1711525846880,-500.0,0.00021917,2]
[320710366,1711525846889,-500.0,0.00021917,2]
[320710368,1711525846898,-500.0,0.00021917,2]
[320710370,1711525846907,-991.98,0.00021917,2]
[320710372,1711525846916,-638.34,0.00021917,2]
[320710374,1711525846925,-500.0,0.00021917,2]
[320710376,1711525846935,-1917.83,0.00021917,2]
[320710378,1711525846944,-500.0,0.00021917,2]
[320710380,1711525846953,-500.0,0.00021917,2]
[320710382,1711525846963,-1050.95,0.00021917,2]
[320710384,1711525846971,-500.0,0.00021917,2]
[320710386,1711525846981,-500.0,0.00021917,2]
[320710388,1711525846990,-2177.72,0.00021917,2]
[320710390,1711525846999,-1573.35,0.00021917,2]
[320710392,1711525847008,-500.0,0.00021917,2]
[320710394,1711525847017,-500.0,0.00021917,2]
[320710396,1711525847026,-25387.59,0.00021917,2]
[320710398,1711525847035,-500.0,0.00021917,2]
[320710400,1711525847044,-500.0,0.00021917,2]
[320710402,1711525847054,-500.0,0.00021917,2]
[320710404,1711525847063,-500.0,0.00021917,2]
[320710406,1711525847072,-1725.85,0.00021917,2]
[320710408,1711525847081,-500.0,0.00021917,2]
[320710410,1711525847091,-21596.81,0.00021917,2]
[320710412,1711525847100,-500.0,0.00021917,2]
[320710414,1711525847110,-932.5,0.00021917,2]
[320710416,1711525847119,-500.0,0.00021917,2]
[320710418,1711525847128,-500.0,0.00021917,2]
[320710420,1711525847137,-3931.22,0.00021917,2]
[320710422,1711525847146,-4880.59,0.00021917,2]
[320710424,1711525847157,-618.32,0.00021917,2]
[320710426,1711525847166,-501.28003229,0.00021917,2]
[320710428,1711525847175,-1545.99,0.00021917,2]
[320710430,1711525847184,-3991.66,0.00021917,2]
[320710432,1711525847193,-500.0,0.00021917,2]
[320710434,1711525847203,-659.27,0.00021917,2]
[320710436,1711525847214,-500.0,0.00021917,2]
[320710438,1711525847226,-503.7260229,0.00021917,2]
[320710440,1711525847237,-1673.72,0.00021917,2]
[320710442,1711525847246,-4423.14,0.00021917,2]
[320710444,1711525847255,-962.07,0.00021917,2]
[320710446,1711525847264,-2966.98,0.00021917,2]
[320710448,1711525847274,-276.2,0.00021917,2]
[320710450,1711525847284,-1976.1,0.00021917,2]
[320710452,1711525847293,-572.33,0.00021917,2]
[320710454,1711525847302,-544.79,0.00021917,2]
[320710456,1711525847311,-500.0,0.00021917,2]
[320710458,1711525847322,-500.0,0.00021917,2]
[320710460,1711525847332,-500.0,0.00021917,2]
[320710462,1711525847341,-588.5,0.00021917,2]
[320710464,1711525847350,-7912.74,0.00021917,2]
[320710466,1711525847359,-166.666666,0.00021918,2]
[320710468,1711525847368,-157.85211395,0.00022,2]
[320710470,1711525847378,-7111.15191087,0.00022,2]
[320710472,1711525847387,-35744.29149481,0.00022,4]
[320710474,1711525847396,-523.0,0.00022,2]
[320710476,1711525847407,-877.79537572,0.0002217,2]
[320710478,1711525847416,-523.0,0.00022192,2]
[320710480,1711525847426,-153.0,0.00022247,2]
[320710482,1711525847436,-153.0,0.00022247,2]
[320710484,1711525847445,-153.0,0.00022247,2]
[320710486,1711525847454,-153.0,0.00022247,2]
[320710488,1711525847463,-166.666666,0.00022431,2]
[320710490,1711525847473,-523.0,0.00022466,2]
[320710492,1711525847482,-153.0,0.00022575,2]
[320710494,1711525847491,-153.0,0.00022575,2]
[320710496,1711525847501,-153.0,0.00022575,2]
[320710498,1711525847510,-153.0,0.00022575,2]
[320710500,1711525847519,-153.0,0.00022575,2]
[320710502,1711525847528,-153.0,0.00022575,2]
[320710504,1711525847537,-523.0,0.0002274,2]
[320710506,1711525847546,-166.666666,0.00022944,2]
[320710507,1711525847555,-835.50717859,0.00023,2]
[320710509,1711525847564,-8619.18607965,0.00023,30]
[320710512,1711525847574,-523.0,0.00023014,2]
[320710514,1711525847583,-523.0,0.00023014,2]
[320710515,1711525847597,-153.0,0.00023068,2]
[320710518,1711525847607,-153.0,0.00023068,2]
[320710520,1711525847616,-153.0,0.00023068,2]
[320710522,1711525847625,-153.0,0.00023068,2]
[320710523,1711525847635,-153.0,0.00023068,2]
[320710525,1711525847643,-200.9022208,0.00023068,2]
[320710528,1711525847655,-166.666666,0.00023456,2]
[320710530,1711525847665,-151.0,0.00023894,2]
[320710532,1711525847674,-166.666666,0.00023969,2]
[320710534,1711525847683,-523.0,0.00024164,2]
[320710535,1711525847692,-523.0,0.00024164,2]
[320710537,1711525847701,-166.666666,0.00024482,2]
[320710540,1711525847711,-7762.27330439,0.0002455,2]
[320710542,1711525847720,-500.0,0.00024657,2]
[320710544,1711525847730,-500.0,0.00024657,2]
[320710546,1711525847739,-500.0,0.00024657,2]
[320710547,1711525847748,-343.75868066,0.00024657,2]
[320710550,1711525847757,-500.0,0.00024657,2]
[320710552,1711525847767,-500.0,0.00024657,2]
[320710554,1711525847776,-660.12,0.00024657,2]
[320710556,1711525847785,-500.0,0.00024657,2]
[320710568,1711525847891,-500.0,0.00024657,2]
[320710570,1711525847901,-500.0,0.00024657,2]
[320710572,1711525847911,-500.0,0.00024657,2]
[320710574,1711525847920,-500.0,0.00024657,2]
[320710576,1711525847929,-255.56378929,0.00024657,2]
[320710578,1711525847938,-500.0,0.00024657,2]
[320710580,1711525847947,-500.0,0.00024657,2]
[320710582,1711525847957,-500.0,0.00024657,2]
[320710584,1711525847966,-1554.49,0.00024657,2]
[320710586,1711525847975,-500.0,0.00024657,2]
[320710588,1711525847984,-500.0,0.00024657,2]
[320710590,1711525847993,-1939.4,0.00024657,2]
[320710592,1711525848002,-500.0,0.00024657,2]
[320710594,1711525848011,-500.0,0.00024657,2]
[320710596,1711525848021,-500.0,0.00024657,2]
[320710598,1711525848030,-500.0,0.00024657,2]
[320710600,1711525848039,-500.0,0.00024657,2]
[320710602,1711525848048,-674.34,0.00024657,2]
[320710604,1711525848056,-503.23349067,0.00024657,2]
[320710606,1711525848066,-500.0,0.00024657,2]
[320710608,1711525848075,-500.0,0.00024657,2]
[320710610,1711525848084,-500.0,0.00024657,2]
[320710612,1711525848093,-500.0,0.00024657,2]
[320710614,1711525848102,-500.0,0.00024657,2]
[320710616,1711525848111,-500.0,0.00024657,2]
[320710618,1711525848120,-500.0,0.00024657,2]
[320710620,1711525848129,-500.0,0.00024657,2]
[320710622,1711525848138,-500.0,0.00024657,2]
[320710624,1711525848147,-500.0,0.00024657,2]
[320710626,1711525848157,-520.91,0.00024657,2]
[320710628,1711525848166,-682.83,0.00024657,2]
[320710630,1711525848175,-500.0,0.00024657,2]
[320710632,1711525848184,-500.0,0.00024657,2]
[320710634,1711525848194,-500.0,0.00024657,2]
[320710636,1711525848205,-1099.85,0.00024657,2]
[320710638,1711525848214,-826.08,0.00024657,2]
[320710640,1711525848226,-646.65,0.00024657,2]
[320710642,1711525848236,-3852.88,0.00024657,2]
[320710644,1711525848245,-500.0,0.00024657,2]
[320710645,1711525848254,-500.0,0.00024657,2]
[320710646,1711525848263,-500.0,0.00024657,2]
[320710647,1711525848271,-991.98,0.00024657,2]
[320710648,1711525848280,-638.34,0.00024657,2]
[320710649,1711525848290,-500.0,0.00024657,2]
[320710650,1711525848299,-1917.83,0.00024657,2]
[320710651,1711525848309,-501.43546611,0.00024657,2]
[320710652,1711525848319,-500.0,0.00024657,2]
[320710653,1711525848328,-1050.95,0.00024657,2]
[320710654,1711525848338,-500.0,0.00024657,2]
[320710655,1711525848346,-500.0,0.00024657,2]
[320710656,1711525848356,-2177.72,0.00024657,2]
[320710657,1711525848365,-1573.35,0.00024657,2]
[320710658,1711525848374,-500.0,0.00024657,2]
[320710659,1711525848382,-500.0,0.00024657,2]
[320710661,1711525848392,-25387.59,0.00024657,2]
[320710662,1711525848402,-500.0,0.00024657,2]
[320710664,1711525848412,-500.0,0.00024657,2]
[320710666,1711525848421,-500.0,0.00024657,2]
[320710668,1711525848430,-500.0,0.00024657,2]
[320710670,1711525848439,-1725.85,0.00024657,2]
[320710672,1711525848448,-500.0,0.00024657,2]
[320710674,1711525848458,-21596.81,0.00024657,2]
[320710676,1711525848467,-932.5,0.00024657,2]
[320710678,1711525848477,-500.0,0.00024657,2]
[320710681,1711525848487,-500.0,0.00024657,2]
[320710682,1711525848497,-500.0,0.00024657,2]
[320710685,1711525848506,-3931.22,0.00024657,2]
[320710686,1711525848515,-4880.59,0.00024657,2]
[320710689,1711525848525,-618.32,0.00024657,2]
[320710690,1711525848534,-1545.99,0.00024657,2]
[320710692,1711525848543,-3991.66,0.00024657,2]
[320710694,1711525848552,-500.0,0.00024657,2]
[320710697,1711525848562,-500.0,0.00024657,2]
[320710698,1711525848572,-659.27,0.00024657,2]
[320710701,1711525848581,-500.0,0.00024657,2]
[320710702,1711525848592,-1673.72,0.00024657,2]
[320710704,1711525848601,-4423.14,0.00024657,2]
[320710707,1711525848611,-962.07,0.00024657,2]
[320710709,1711525848620,-2966.98,0.00024657,2]
[320710711,1711525848630,-1976.1,0.00024657,2]
[320710712,1711525848642,-572.33,0.00024657,2]
[320710715,1711525848654,-500.0,0.00024657,2]
[320710717,1711525848663,-544.79,0.00024657,2]
[320710719,1711525848672,-500.0,0.00024657,2]
[320710721,1711525848684,-500.0,0.00024657,2]
[320710723,1711525848694,-588.5,0.00024657,2]
[320710725,1711525848703,-7912.74,0.00024657,2]
[320710727,1711525848714,-500.0,0.00024658,2]
[320710729,1711525848724,-380.0,0.00024658,2]
[320710731,1711525848734,-500.0,0.00024712,2]
[320710733,1711525848745,-500.0,0.00024767,2]
[320710735,1711525848754,-500.0,0.00024821,2]
[320710737,1711525848764,-195.10496714,0.00024844,2]
[320710739,1711525848773,-500.0,0.00024876,2]
[320710741,1711525848782,-9834.89162083,0.00024895,2]
[320710743,1711525848791,-4000.0,0.00024895,2]
[320710745,1711525848800,-2082.97111632,0.00024895,2]
[320710747,1711525848810,-151.90518637,0.00024895,2]
[320710749,1711525848820,-10000.0,0.00024901,30]
[320710751,1711525848830,-10000.0,0.00024901,30]
[320710753,1711525848839,-10000.0,0.00024901,30]
[320710755,1711525848849,-10000.0,0.00024901,30]
[320710757,1711525848858,-10000.0,0.00024901,30]
[320710759,1711525848867,-10000.0,0.00024901,30]
[320710761,1711525848877,-10000.0,0.00024901,30]
[320710763,1711525848886,-10000.0,0.00024901,30]
[320710765,1711525848895,-10000.0,0.00024901,30]
[320710767,1711525848907,-10000.0,0.00024901,30]
[320710769,1711525848917,-6394.0,0.00024901,30]
[320710771,1711525848926,-10000.0,0.00024912,30]
[320710773,1711525848936,-5892.0,0.00024912,30]
[320710775,1711525848946,-500.0,0.00024931,2]
[320710777,1711525848955,-500.0,0.00024986,2]
[320710779,1711525848964,-22239.6400965,0.00025,2]
[320710781,1711525848973,-155.01240099,0.00025,2]
[320710783,1711525848982,-500.0,0.00025041,2]
[320710785,1711525848991,-500.0,0.00025095,2]
[320710787,1711525849000,-1792.47,0.00025102,30]
[320710789,1711525849011,-410.3916909,0.00025104,2]
[320710791,1711525849020,-2092.84915292,0.00025111,30]
[320710793,1711525849029,-523.0,0.00025131,2]
[320710795,1711525849038,-165.801848,0.00025145,2]
[320710797,1711525849047,-165.801849,0.00025145,2]
[320710799,1711525849056,-849.919869,0.00025145,2]
[320710801,1711525849065,-2034.465773,0.00025145,2]
[320710803,1711525849074,-169.983975,0.00025145,2]
[320710805,1711525849083,-406.893155,0.00025145,2]
[320710807,1711525849092,-500.0,0.0002515,2]
[320710809,1711525849101,-500.0,0.00025205,2]
[320710811,1711525849110,-500.0,0.0002526,2]
[320710813,1711525849119,-500.0,0.00025315,2]
[320710815,1711525849128,-523.0,0.00025315,2]
[320710817,1711525849137,-500.0,0.00025369,2]
[320710819,1711525849146,-500.0,0.00025424,2]
[320710821,1711525849157,-849.919869,0.00025459,2]
[320710823,1711525849166,-2034.465773,0.00025459,2]
[320710825,1711525849175,-169.983975,0.00025459,2]
[320710827,1711525849183,-406.893155,0.00025459,2]
[320710829,1711525849192,-410.3916909,0.00025467,2]
[320710831,1711525849201,-500.0,0.00025479,2]
[320710833,1711525849210,-500.0,0.00025534,2]
[320710834,1711525849219,-500.0,0.00025589,2]
[320710837,1711525849231,-292.86613811,0.00025643,2]
[320710838,1711525849241,-849.919869,0.00025773,2]
[320710840,1711525849250,-2034.465773,0.00025773,2]
[320710842,1711525849259,-169.983975,0.00025773,2]
[320710844,1711525849269,-406.893155,0.00025773,2]
[320710846,1711525849278,-151.90518636,0.00025821,2]
[320710848,1711525849287,-6566.7617159,0.00025888,4]
[320710850,1711525849296,-3000.0,0.000259,2]
[320710852,1711525849305,-3645.8198244,0.000259,2]
[320710854,1711525849315,-4000.0,0.000259,2]
[320710857,1711525849326,-4000.0,0.000259,2]
[320710858,1711525849335,-155.01240099,0.00026,2]
[320710860,1711525849345,-661.0,0.00026,2]
[320710862,1711525849355,-410.3916909,0.00026007,2]
[320710865,1711525849364,-849.919869,0.00026088,2]
[320710867,1711525849374,-2034.465773,0.00026088,2]
[320710868,1711525849383,-169.983975,0.00026088,2]
[320710870,1711525849393,-406.893155,0.00026088,2]
[320710872,1711525849402,-523.0,0.00026098,2]
[320710875,1711525849411,-151.90518637,0.00026321,2]
[320710876,1711525849420,-849.919869,0.00026402,2]
[320710878,1711525849431,-2034.465773,0.00026402,2]
[320710881,1711525849440,-169.983975,0.00026402,2]
[320710882,1711525849450,-406.893155,0.00026402,2]
[320710885,1711525849460,-523.0,0.00026466,2]
[320710886,1711525849469,-160.0,0.00026705,3]
[320710888,1711525849478,-348.41701958,0.00026744,2]
[320710890,1711525849488,-160.0,0.00026891,4]
[320710892,1711525849497,-3109.48152683,0.00027,2]
[320710894,1711525849507,-5000.0,0.00027,2]
[320710896,1711525849516,-185.60162813,0.00027,2]
[320710899,1711525849526,-1595.76083188,0.00027,15]
[320710900,1711525849536,-523.0,0.00027064,2]
[320710902,1711525849545,-160.0,0.00027077,5]
[320710904,1711525849554,-160.0,0.00027263,6]
[320710907,1711525849564,-3972.44482011,0.0002728,7]
[320710909,1711525849573,-151.90518637,0.00027321,2]
[320710910,1711525849583,-1666.14382174,0.00027395,2]
[320710912,1711525849592,-298.03462589,0.00027395,2]
[320710915,1711525849601,-30228.71953455,0.00027396,5]
[320710917,1711525849611,-218775.054206,0.00027397,3]
[320710918,1711525849620,-998.0,0.00027397,2]
[320710921,1711525849629,-3565.79974549,0.00027397,2]
[320710923,1711525849640,-3565.79974549,0.00027397,2]
[320710924,1711525849649,-3565.79974549,0.00027397,2]
[320710926,1711525849659,-3565.79974549,0.00027397,2]
[320710928,1711525849668,-3565.79974549,0.00027397,2]
[320710931,1711525849677,-3565.79974549,0.00027397,2]
[320710933,1711525849687,-3565.79974549,0.00027397,2]
[320710934,1711525849696,-3565.79974549,0.00027397,2]
[320710936,1711525849705,-3565.79974549,0.00027397,2]
[320710938,1711525849715,-3565.79974549,0.00027397,2]
[320710940,1711525849724,-3565.79974549,0.00027397,2]
[320710942,1711525849733,-3565.79974549,0.00027397,2]
[320710945,1711525849744,-3565.79974549,0.00027397,2]
[320710947,1711525849754,-3565.79974549,0.00027397,2]
[320710949,1711525849763,-3565.79974549,0.00027397,2]
[320710951,1711525849772,-3565.79974549,0.00027397,2]
[320710953,1711525849781,-3565.79974549,0.00027397,2]
[320710955,1711525849790,-3565.79974549,0.00027397,2]
[320710956,1711525849799,-3565.79974549,0.00027397,2]
[320710958,1711525849808,-3565.79974549,0.00027397,2]
[320710960,1711525849817,-3565.79974549,0.00027397,2]
[320710962,1711525849826,-3565.79974549,0.00027397,2]
[320710964,1711525849835,-3565.79974549,0.00027397,2]
[320710967,1711525849844,-3565.79974549,0.00027397,2]
[320710968,1711525849854,-3565.79974549,0.00027397,2]
[320710970,1711525849863,-3565.79974549,0.00027397,2]
[320710972,1711525849872,-3565.79974549,0.00027397,2]
[320710974,1711525849881,-3565.79974549,0.00027397,2]
[320710976,1711525849890,-3565.79974549,0.00027397,2]
[320710978,1711525849899,-3565.79974549,0.00027397,2]
[320710980,1711525849910,-3565.79974549,0.00027397,2]
[320710983,1711525849920,-3565.79974549,0.00027397,2]
[320710985,1711525849930,-3565.79974549,0.00027397,2]
[320710987,1711525849940,-3565.79974549,0.00027397,2]
[320710989,1711525849949,-3565.79974549,0.00027397,2]
[320710991,1711525849959,-3565.79974549,0.00027397,2]
[320710993,1711525849967,-3565.79974549,0.00027397,2]
[320710994,1711525849976,-3565.79974549,0.00027397,2]
[320710996,1711525849986,-3565.79974549,0.00027397,2]
[320710998,1711525849995,-3565.79974549,0.00027397,2]
[320711000,1711525850005,-3565.79974549,0.00027397,2]
[320711002,1711525850014,-3565.79974549,0.00027397,2]
[320711004,1711525850023,-3565.79974549,0.00027397,2]
[320711006,1711525850032,-3565.79974549,0.00027397,2]
[320711008,1711525850042,-3565.79974549,0.00027397,2]
[320711011,1711525850052,-3565.79974549,0.00027397,2]
[320711012,1711525850061,-3565.79974549,0.00027397,2]
[320711014,1711525850071,-3565.79974549,0.00027397,2]
[320711015,1711525850080,-3565.79974549,0.00027397,2]
[320711016,1711525850090,-3565.79974549,0.00027397,2]
[320711017,1711525850099,-3565.79974549,0.00027397,2]
[320711018,1711525850109,-3565.79974549,0.00027397,2]
[320711019,1711525850118,-3565.79974549,0.00027397,2]
[320711020,1711525850127,-3565.79974549,0.00027397,2]
[320711021,1711525850137,-3565.79974549,0.00027397,2]
[320711022,1711525850146,-3565.79974549,0.00027397,2]
[320711023,1711525850159,-3565.79974549,0.00027397,2]
[320711024,1711525850168,-3565.79974549,0.00027397,2]
[320711025,1711525850178,-3565.79974549,0.00027397,2]
[320711026,1711525850188,-3565.79974549,0.00027397,2]
[320711027,1711525850198,-3565.79974549,0.00027397,2]
[320711028,1711525850208,-3565.79974549,0.00027397,2]
[320711029,1711525850218,-3565.79974549,0.00027397,2]
[320711030,1711525850227,-3565.79974549,0.00027397,2]
[320711031,1711525850239,-3565.79974549,0.00027397,2]
[320711032,1711525850249,-934.29281609,0.00027397,2]
[320711033,1711525850355,-2631.5069294,0.00027397,2]
[320711034,1711525850375,-3565.79974549,0.00027397,2]
[320711035,1711525850385,-3565.79974549,0.00027397,2]
[320711036,1711525850395,-3565.79974549,0.00027397,2]
[320711038,1711525850407,-3565.79974549,0.00027397,2]
[320711040,1711525850417,-3547.03237839,0.00027397,2]
[320711042,1711525850426,-3547.03237839,0.00027397,2]
[320711044,1711525850436,-3547.03237839,0.00027397,2]
[320711046,1711525850445,-3547.03237839,0.00027397,2]
[320711048,1711525850454,-3547.03237839,0.00027397,2]
[320711050,1711525850464,-3547.03237839,0.00027397,2]
[320711052,1711525850474,-3547.03237839,0.00027397,2]
[320711054,1711525850483,-3547.03237839,0.00027397,2]
[320711056,1711525850493,-3547.03237839,0.00027397,2]
[320711057,1711525850502,-3547.03237839,0.00027397,2]
[320711058,1711525850511,-3547.03237839,0.00027397,2]
[320711059,1711525850521,-3547.03237839,0.00027397,2]
[320711060,1711525850530,-3547.03237839,0.00027397,2]
[320711061,1711525850539,-3.00546659,0.00027397,2]
[320711062,1711525850558,-3544.0269118,0.00027397,2]
[320711063,1711525850567,-3547.03237839,0.00027397,2]
[320711064,1711525850577,-3547.03237839,0.00027397,2]
[320711065,1711525850586,-3547.03237839,0.00027397,2]
[320711066,1711525850595,-3547.03237839,0.00027397,2]
[320711067,1711525850604,-3547.03237836,0.00027397,2]
[320711068,1711525850613,-500.0,0.00027397,2]
[320711069,1711525850622,-500.0,0.00027397,2]
[320711070,1711525850632,-466.59373215,0.00027397,2]
[320711071,1711525850642,-500.0,0.00027397,2]
[320711072,1711525850655,-500.0,0.00027397,2]
[320711073,1711525850665,-660.12,0.00027397,2]
[320711075,1711525850676,-500.0,0.00027397,2]
[320711077,1711525850686,-500.0,0.00027397,2]
[320711078,1711525850696,-500.0,0.00027397,2]
[320711080,1711525850707,-500.0,0.00027397,2]
[320711082,1711525850717,-500.0,0.00027397,2]